bitfinex/quotes_ETHUSD_20250801
["timestamp","ask_amount","ask_price","bid_price","bid_amount"]
[1754036409343,1.9555,3622.2,3621.6,0.21024394]
[1754036409544,1.9555,3622.2,3621.4,2.76136159]
[1754036409842,4.711,3622.1,3621.1,2.76159178]
[1754036410139,2.4007,3622.1,3621.4,2.7613379]
[1754036410295,1.9555,3622.1,3621.3,3.0]
[1754036410648,4.707,3622.0,3621.3,0.20769415]
[1754036410812,6.631,3622.4,3621.5,3.0]
[1754036410994,6.631,3622.4,3621.3,3.3955]
[1754036410995,4.705,3621.9,3621.3,3.3955]
[1754036411201,1.9555,3621.8,3621.3,0.20454318]
[1754036411419,1.9555,3621.8,3620.7,2.76189687]
[1754036411617,1.9555,3621.8,3620.6,0.4608]
[1754036411818,1.9555,3621.8,3620.7,2.76188787]
[1754036412058,1.9555,3621.8,3620.8,2.76176167]
[1754036412352,1.9555,3621.8,3620.7,0.20740393]
[1754036412353,0.4452,3621.7,3620.7,0.20740393]
[1754036412561,1.9555,3621.6,3620.2,4.71525073]
[1754036412763,1.9555,3621.6,3620.2,1.953]
[1754036413065,4.699,3621.5,3620.3,3.2229634]
[1754036413262,1.9555,3621.4,3620.7,3.0]
[1754036413414,1.9555,3621.4,3620.3,0.4608]
[1754036413415,1.9555,3621.4,3620.5,2.76203065]
[1754036413729,2.4007,3621.4,3620.2,0.20401954]
[1754036413935,1.9555,3621.4,3619.6,0.4608]
[1754036414121,1.9555,3621.4,3619.7,2.76265988]
[1754036414122,0.4452,3621.3,3619.7,2.76265988]
[1754036414322,1.9555,3621.2,3619.7,7.604783]
[1754036414629,1.9555,3621.2,3619.7,2.9681062]
[1754036414630,0.9952,3621.1,3619.7,2.9681062]
[1754036414813,0.55,3620.9,3619.5,2.76275689]
[1754036415027,0.55,3620.7,3619.1,0.4608]
[1754036415354,2.4007,3620.6,3619.2,3.247022]
[1754036415541,2.4007,3620.6,3619.4,2.76281996]
[1754036415739,2.4007,3620.6,3619.4,0.20613523]
[1754036415920,2.4007,3620.6,3619.8,2.76253852]
[1754036416115,2.4007,3620.6,3620.0,2.7624209]
[1754036416320,2.4007,3620.6,3619.8,2.76256256]
[1754036416540,2.4007,3620.6,3619.7,2.7626589]
[1754036416882,2.4007,3620.6,3619.3,2.76294528]
[1754036417088,0.9952,3620.5,3619.0,0.20584484]
[1754036417369,0.55,3620.2,3618.3,1.03441373]
[1754036417570,0.55,3619.8,3618.0,7.918953]
[1754036417773,0.55,3619.6,3619.4,3.9662]
[1754036418083,5.01975988,3619.7,3617.9,0.002]
[1754036418084,0.55,3619.3,3617.9,0.002]
[1754036418285,0.55,3618.5,3617.9,0.002]
[1754036418437,0.1384,3618.0,3617.9,0.002]
[1754036418988,1.9503,3618.0,3617.9,0.002]
[1754036419137,2.5003,3618.0,3617.9,0.002]
[1754036419338,7.1903,3618.0,3617.9,0.002]
[1754036420219,2.5003,3618.0,3617.9,0.002]
[1754036420677,1.9503,3618.0,3617.9,0.002]
[1754036420871,6.6323,3618.0,3617.9,0.002]
[1754036421086,1.9503,3618.0,3617.9,0.002]
[1754036421239,9.94525798,3618.0,3617.9,0.002]
[1754036421439,12.94525798,3618.0,3617.9,0.002]
[1754036421655,5.5003,3618.0,3617.9,0.002]
[1754036421859,10.1813,3618.0,3617.9,0.002]
[1754036422377,12.94525798,3618.0,3617.9,0.002]
[1754036423243,15.51825798,3618.0,3617.9,0.002]
[1754036423551,15.51825798,3618.0,3615.9,0.002]
[1754036423552,0.55,3616.9,3615.9,0.002]
[1754036423870,0.1384,3616.0,3615.9,0.002]
[1754036424041,4.8154,3616.0,3615.9,0.002]
[1754036424378,4.8144,3616.0,3615.9,0.002]
[1754036424674,1.9503,3616.0,3615.9,0.002]
[1754036424841,6.6263,3616.0,3615.9,0.002]
[1754036425371,0.1384,3616.0,3615.9,0.002]
[1754036425576,4.8104,3616.0,3615.9,0.002]
[1754036425886,4.8094,3616.0,3615.9,0.002]
[1754036426177,0.1384,3616.0,3615.9,5.0367632]
[1754036426378,4.8084,3616.0,3615.9,0.002]
[1754036426936,0.1384,3616.0,3615.9,0.002]
[1754036427141,4.8044,3616.0,3615.9,3.2041632]
[1754036427350,0.1384,3616.0,3615.9,3.2041632]
[1754036427643,0.1384,3616.0,3615.9,8.0367632]
[1754036427884,6.638,3616.5,3616.4,2.76518084]
[1754036428184,6.638,3616.5,3616.4,21.53675084]
[1754036428485,0.1384,3616.6,3616.5,12.02737438]
[1754036428683,4.8024,3616.6,3616.5,14.29657438]
[1754036428845,4.8024,3616.6,3616.0,1.8326]
[1754036429045,4.8024,3616.6,3615.6,0.1384]
[1754036429046,0.1,3616.4,3615.6,0.1384]
[1754036429357,4.664,3616.6,3615.6,5.76579267]
[1754036429358,0.1,3615.7,3615.6,5.76579267]
[1754036429543,0.1,3616.3,3616.2,2.76533377]
[1754036429740,0.1,3615.5,3615.4,3.215556]
[1754036429940,0.1,3615.1,3614.8,2.76640478]
[1754036430148,0.1384,3615.3,3615.2,8.350559]
[1754036430149,0.2384,3615.3,3615.2,8.350559]
[1754036430347,0.2384,3615.3,3614.7,0.1384]
[1754036430348,0.1,3615.1,3615.0,2.76625172]
[1754036430576,0.1,3615.3,3615.2,2.76609869]
[1754036430786,4.767,3615.5,3615.4,5.76594567]
[1754036430951,4.767,3615.5,3615.4,6.20254567]
[1754036431154,4.767,3615.5,3615.4,21.07185867]
[1754036431357,4.667,3615.5,3615.4,20.57185867]
[1754036431583,4.667,3615.5,3615.4,6.20254567]
[1754036431878,0.1,3615.8,3615.7,2.76571618]
[1754036432055,0.1,3616.0,3615.9,5.7655632]
[1754036432244,1.8119,3617.7,3616.4,2.76518084]
[1754036432245,0.1,3616.5,3616.4,2.76518084]
[1754036432446,4.661,3616.8,3616.4,3.4366]
[1754036432682,0.1,3616.6,3616.5,5.76508785]
[1754036432882,0.1384,3616.7,3616.6,5.76502792]
[1754036432883,4.8984,3616.7,3616.6,5.76502792]
[1754036433053,4.8984,3616.7,3616.6,6.20162792]
[1754036433475,4.66,3616.7,3616.6,6.20162792]
[1754036433670,4.66,3616.7,3616.6,6.34002792]
[1754036434465,0.1384,3617.1,3617.0,28.56502014]
[1754036434881,0.1384,3617.1,3617.0,29.00162014]
[1754036435051,4.653,3617.7,3617.6,2.7642636]
[1754036435391,4.653,3617.7,3617.6,5.7642636]
[1754036435564,4.653,3617.7,3617.6,6.2008636]
[1754036436071,4.753,3617.7,3617.6,6.2008636]
[1754036436272,4.653,3617.7,3617.6,6.2008636]
[1754036436690,4.653,3617.7,3617.6,30.1986776]
[1754036437184,4.645,3618.3,3618.2,2.76373921]
[1754036437386,4.745,3618.3,3618.2,0.4366]
[1754036437688,4.745,3618.3,3618.2,3.2004052]
[1754036437987,4.745,3618.3,3618.2,0.4366]
[1754036438285,4.745,3618.3,3618.2,3.2004052]
[1754036438592,4.645,3618.3,3618.2,0.4366]
[1754036438754,4.645,3618.3,3618.2,6.3388052]
[1754036438950,0.1384,3618.7,3618.6,2.76349969]
[1754036439151,4.643,3618.8,3618.7,2.76342332]
[1754036439390,4.643,3618.8,3618.7,6.33842332]
[1754036439556,4.743,3618.8,3618.7,6.33842332]
[1754036439752,4.643,3618.8,3618.7,6.33842332]
[1754036439963,4.7754,3619.3,3619.1,2.76307157]
[1754036440259,7.0898,3620.5,3619.2,0.4366]
[1754036440470,4.634,3620.1,3619.4,5.7628728]
[1754036440801,4.634,3620.1,3619.6,2.76267089]
[1754036440963,4.634,3620.1,3619.5,0.4366]
[1754036441312,4.7724,3620.1,3619.9,2.76249061]
[1754036441508,4.7724,3620.1,3619.6,0.1384]
[1754036441709,4.7724,3620.1,3619.6,3.0]
[1754036441710,0.1,3619.7,3619.6,3.0]
[1754036442003,0.1,3619.7,3619.5,3.0]
[1754036442463,0.1,3619.7,3619.4,0.1384]
[1754036442661,0.1,3619.5,3618.3,2.76368856]
[1754036442925,4.627,3619.4,3619.0,2.76319425]
[1754036443225,4.627,3619.4,3619.3,11.553266]
[1754036443384,4.627,3619.4,3619.3,14.27373645]
[1754036443571,4.627,3619.4,3619.3,10.51393921]
[1754036443768,0.1384,3620.0,3619.4,10.547354]
[1754036443982,4.721,3619.9,3619.8,3.0]
[1754036444182,4.621,3619.9,3619.8,5.76258356]
[1754036444410,0.63149769,3620.2,3620.1,5.76235463]
[1754036444705,0.63149769,3620.2,3620.1,6.19895463]
[1754036444879,0.63149769,3620.2,3620.1,6.10093123]
[1754036445285,0.63149769,3620.2,3620.1,29.25028723]
[1754036445874,0.63149769,3620.2,3620.1,21.44976923]
[1754036446073,0.63149769,3620.2,3620.1,6.10093123]
[1754036446473,0.63149769,3620.2,3620.1,16.72459723]
[1754036447104,0.63149769,3620.2,3620.1,11.33095923]
[1754036447502,0.63149769,3620.2,3620.1,22.53708023]
[1754036447902,0.63149769,3620.2,3620.1,23.08708023]
[1754036448089,0.001,3620.6,3620.5,35.76204944]
[1754036448286,0.001,3620.6,3620.5,9.30199044]
[1754036448486,0.001,3620.6,3620.5,16.21996444]
[1754036448777,0.001,3620.6,3620.5,15.40353944]
[1754036449019,0.001,3620.6,3620.5,15.73793944]
[1754036449221,0.001,3620.6,3620.5,15.87633944]
[1754036449722,0.001,3620.6,3620.5,10.12411313]
[1754036449890,0.001,3620.6,3620.5,8.91932613]
[1754036450422,0.001,3620.6,3620.5,9.33092613]
[1754036450630,0.001,3620.6,3620.5,37.13166113]
[1754036450797,1e-08,3620.6,3620.5,36.65886113]
[1754036450991,1e-08,3620.6,3620.5,21.92680613]
[1754036451631,1e-08,3620.6,3620.5,37.96135213]
[1754036451823,1e-08,3620.6,3620.5,36.69017513]
[1754036452030,1e-08,3620.6,3620.5,25.49041113]
[1754036452404,1e-08,3620.6,3620.5,22.68983313]
[1754036452817,1e-08,3620.6,3620.5,33.64420913]
[1754036453026,1e-08,3620.6,3620.5,12.93010513]
[1754036453227,1e-08,3620.6,3620.5,5.70261513]
[1754036453599,1e-08,3620.6,3620.5,8.70261513]
[1754036453797,1e-08,3620.6,3620.5,5.70261513]
[1754036454529,1e-08,3620.6,3620.5,2.94056569]
[1754036454710,1e-08,3620.6,3620.5,2.79496069]
[1754036454913,7.61800001,3620.6,3620.5,5.55701013]
[1754036455431,7.61800001,3620.6,3620.5,0.20841169]
[1754036455600,3.0,3620.5,3620.3,0.1384]
[1754036455799,0.1,3620.4,3620.3,0.1384]
[1754036456046,0.1,3620.4,3619.9,2.76243865]
[1754036456338,0.1,3620.4,3620.2,0.1384]
[1754036456505,1.8399,3620.3,3619.5,0.20324815]
[1754036456694,0.1,3620.0,3619.1,30.0]
[1754036456899,0.1,3620.0,3619.7,17.21152588]
[1754036456900,3.0,3619.8,3619.7,17.21152588]
[1754036457098,3.0,3619.8,3619.7,3.23545988]
[1754036457347,3.0,3619.8,3619.7,19.86954588]
[1754036457513,3.0,3619.8,3619.7,0.1384]
[1754036457696,3.0,3619.8,3619.5,0.207998]
[1754036457893,3.0,3619.8,3619.4,0.1384]
[1754036458097,4.8399,3619.8,3619.4,0.1384]
[1754036458307,3.0,3619.8,3619.4,0.1384]
[1754036458509,0.1,3619.6,3619.5,7.1956]
[1754036458915,0.1,3619.6,3619.5,9.95841254]
[1754036459300,0.1,3620.1,3619.9,2.76245869]
[1754036459500,7.617,3620.0,3619.9,2.76245869]
[1754036459713,0.1,3619.7,3619.6,7.1954]
[1754036460219,4.617,3620.0,3619.6,5.5838]
[1754036460420,0.1384,3620.2,3619.9,2.7624512]
[1754036460596,4.617,3620.1,3620.0,2.76243093]
[1754036460795,4.717,3620.1,3620.0,2.76243093]
[1754036460999,0.1,3620.0,3619.9,7.71500263]
[1754036461400,2.573,3620.5,3620.4,2.76212573]
[1754036461668,7.19,3620.5,3620.4,2.76212573]
[1754036461812,7.19,3620.5,3620.4,31.70092173]
[1754036462008,4.717,3620.5,3619.6,7.591688]
[1754036462234,4.717,3620.5,3620.0,0.1384]
[1754036462413,4.717,3620.5,3620.4,2.76212573]
[1754036462808,1e-08,3620.6,3620.5,2.76204944]
[1754036463036,0.1,3620.5,3620.4,0.1384]
[1754036463338,0.1,3620.5,3619.7,2.76262243]
[1754036463339,0.1,3620.5,3620.3,2.7621543]
[1754036464040,0.13840001,3620.6,3620.5,2.76204944]
[1754036464263,4.71600001,3620.6,3620.5,2.76204944]
[1754036464411,4.61600001,3620.6,3620.5,2.76204944]
[1754036464605,1e-08,3620.6,3620.5,2.76204944]
[1754036464842,4.61600001,3620.6,3620.5,2.76204944]
[1754036465554,4.61600001,3620.6,3620.5,33.37324944]
[1754036465555,1e-08,3620.6,3620.5,33.37324944]
[1754036465731,2.573,3622.1,3621.5,2.7612453]
[1754036465926,2.2876,3622.4,3620.6,30.0]
[1754036465927,4.7544,3621.7,3621.6,5.76121051]
[1754036466153,4.716,3621.7,3621.6,3.0]
[1754036466472,0.1384,3622.0,3621.7,5.76113427]
[1754036466644,11.257,3621.8,3621.7,5.76113427]
[1754036466970,11.357,3621.8,3621.7,5.76113427]
[1754036467117,11.357,3621.8,3621.7,3.0]
[1754036467317,6.741,3621.8,3621.7,5.76113427]
[1754036467517,11.356,3621.8,3621.7,5.76113427]
[1754036467758,11.256,3621.8,3621.7,5.76113427]
[1754036468450,0.2384,3622.4,3622.0,19.807895]
[1754036468647,0.1,3622.4,3622.3,3.0]
[1754036468811,4.615,3622.4,3622.3,5.76067691]
[1754036469458,0.1384,3622.8,3622.6,3.0]
[1754036469661,8.4769,3623.2,3622.4,3.0]
[1754036469811,8.4769,3623.2,3622.5,10.229683]
[1754036469812,0.1384,3623.0,3622.5,10.229683]
[1754036470012,0.1384,3623.0,3622.9,5.76021971]
[1754036470252,4.614,3623.0,3622.9,5.76021971]
[1754036470915,4.614,3623.0,3622.9,3.0]
[1754036471155,4.714,3623.0,3622.9,3.0]
[1754036471326,2.0783,3623.0,3622.9,3.0]
[1754036471671,4.8524,3623.0,3622.9,3.0]
[1754036471947,6.637,3623.2,3623.0,3.0]
[1754036472160,4.613,3623.1,3623.0,2.76014352]
[1754036472321,4.613,3623.1,3623.0,3.0]
[1754036472760,6.637,3623.2,3623.1,5.76006734]
[1754036472936,11.25,3623.2,3623.1,28.31047134]
[1754036473140,0.1376,3623.9,3623.5,2.75968814]
[1754036473325,0.1376,3623.9,3623.4,0.1376]
[1754036473326,4.613,3623.8,3623.4,0.1376]
[1754036473526,0.1,3623.5,3623.4,5.89739006]
[1754036473981,0.1,3623.5,3623.4,0.1376]
[1754036474263,4.712,3623.5,3623.1,2.76004222]
[1754036474571,4.712,3623.5,3622.5,2.7604515]
[1754036474572,2.15524496,3624.4,3623.5,3.0]
[1754036474726,0.1376,3624.0,3623.9,2.75940645]
[1754036474929,0.1376,3624.0,3623.9,5.75940645]
[1754036475150,2.15524496,3624.4,3623.9,5.75940645]
[1754036475151,0.1,3624.2,3624.1,5.75930575]
[1754036475626,4.612,3624.2,3624.1,5.75930575]
[1754036475827,4.612,3624.2,3624.1,5.89690575]
[1754036476227,4.712,3624.2,3624.1,0.1376]
[1754036476692,4.612,3624.2,3624.1,2.89690575]
[1754036476966,4.612,3624.2,3624.1,5.89690575]
[1754036476967,4.712,3624.2,3624.1,5.89690575]
[1754036477562,4.712,3624.2,3624.1,3.20960188]
[1754036477726,0.1,3624.2,3624.1,3.20960188]
[1754036477922,0.31534496,3624.4,3624.2,3.0]
[1754036478149,0.31534496,3624.4,3624.3,5.89675349]
[1754036478353,4.92534496,3624.4,3624.3,3.0]
[1754036478739,0.1,3624.2,3624.1,0.2093777]
[1754036478942,4.71,3624.2,3624.1,14.39268575]
[1754036479163,4.71,3624.2,3624.1,11.63338]
[1754036479363,4.71,3624.2,3624.1,6.67603]
[1754036479564,0.45294496,3624.4,3624.2,3.0]
[1754036479786,4.709,3624.3,3624.2,3.0]
[1754036479989,4.709,3624.3,3624.1,0.20301471]
[1754036480135,0.1,3624.1,3623.8,11.635154]
[1754036480333,4.609,3624.2,3624.0,5.75938181]
[1754036480538,4.609,3624.2,3623.9,0.4318]
[1754036480539,4.609,3624.2,3623.9,0.5694]
[1754036480735,4.709,3624.2,3623.9,0.5694]
[1754036480938,0.1,3624.1,3623.8,2.254473]
[1754036481188,0.1,3623.9,3623.8,0.34409674]
[1754036481343,4.709,3623.9,3623.8,3.98481574]
[1754036481778,4.709,3623.9,3623.8,6.98481574]
[1754036481943,0.45294496,3624.4,3623.9,3.0]
[1754036482144,0.1,3624.1,3623.9,5.75940415]
[1754036482461,0.1,3623.9,3623.8,6.97110774]
[1754036482664,0.1,3623.9,3623.8,3.34409674]
[1754036482868,0.1,3623.9,3623.8,0.34409674]
[1754036483268,4.8456,3623.9,3623.8,0.20649674]
[1754036483468,4.8456,3623.9,3623.3,0.1376]
[1754036483678,0.1,3623.2,3623.0,0.4318]
[1754036483860,0.1,3623.2,3623.1,3.1384]
[1754036484232,4.607,3623.2,3623.1,9.94510434]
[1754036484491,0.31534496,3624.4,3623.5,3.0]
[1754036484653,0.1,3623.6,3623.4,19.133195]
[1754036484864,0.1376,3624.0,3623.6,3.0]
[1754036485050,0.1376,3624.0,3623.6,5.75967224]
[1754036485248,0.31534496,3624.4,3623.7,0.4593961]
[1754036485443,0.31534496,3624.4,3623.7,0.1376]
[1754036485444,0.1,3623.8,3623.7,0.1376]
[1754036485792,0.1,3623.6,3623.5,6.81607818]
[1754036486283,0.1,3623.6,3623.5,12.88979018]
[1754036486598,0.31534496,3624.4,3623.8,3.0]
[1754036486880,0.1,3623.8,3623.5,3.34730018]
[1754036487043,4.606,3623.7,3623.6,9.44565756]
[1754036487245,4.606,3623.7,3623.6,3.0]
[1754036487868,4.606,3623.7,3623.6,6.597743]
[1754036488579,0.1376,3623.8,3623.7,3.0]
[1754036488776,4.8436,3623.8,3623.7,36.19141034]
[1754036488957,4.8436,3623.8,3623.7,26.47864]
[1754036489145,4.706,3623.8,3623.5,0.20458049]
[1754036489345,0.1,3623.6,3623.5,3.0]
[1754036489596,0.1,3623.6,3623.5,20.35055866]
[1754036489884,0.1,3624.1,3623.8,6.627567]
[1754036490063,0.1,3624.0,3623.9,16.540255]
[1754036490385,0.31534496,3624.4,3624.0,13.413599]
[1754036490593,0.31534496,3624.4,3624.2,20.859147]
[1754036490900,0.1,3624.1,3624.0,3.0]
[1754036491049,0.41534496,3624.4,3624.3,0.1376]
[1754036491354,0.41534496,3624.4,3624.0,5.75938189]
[1754036491355,0.1,3624.2,3624.1,12.705487]
[1754036491556,0.1,3624.2,3624.0,3.1376]
[1754036491557,0.1,3623.7,3623.5,0.20306738]
[1754036491773,0.1,3624.1,3624.0,22.88966674]
[1754036492098,0.1,3624.8,3624.4,30.162983]
[1754036492299,4.604,3624.7,3624.6,32.46007612]
[1754036492501,0.1,3625.0,3624.9,3.0]
[1754036492704,4.704,3625.0,3624.9,5.75869679]
[1754036492873,0.1,3625.2,3625.1,5.75854459]
[1754036493078,0.1,3625.6,3625.3,2.7583924]
[1754036493280,0.1,3625.6,3625.5,9.43111824]
[1754036493482,0.1,3625.8,3625.7,2.75808809]
[1754036493680,0.1386,3626.0,3625.9,5.75793596]
[1754036494011,4.605,3626.0,3625.9,2.75793596]
[1754036494170,4.604,3626.0,3625.9,3.32733596]
[1754036494378,0.001,3626.0,3625.9,9.38533696]
[1754036494691,4.604,3626.0,3625.9,9.38533696]
[1754036494896,4.604,3626.0,3625.9,2.89553596]
[1754036495207,4.604,3626.0,3625.9,0.20917431]
[1754036495381,0.1,3625.7,3625.6,20.47896916]
[1754036495582,0.1,3625.7,3624.8,3.21097007]
[1754036495583,1.9727,3625.7,3624.8,0.45220474]
[1754036495783,1.9727,3625.7,3624.6,0.4318]
[1754036495784,0.1,3625.3,3625.2,5.75846849]
[1754036495992,4.703,3625.3,3625.2,5.75846849]
[1754036496531,0.1,3625.3,3625.2,14.03613949]
[1754036496696,0.1,3625.8,3625.7,5.75808809]
[1754036496894,4.602,3625.8,3625.7,5.75808809]
[1754036497099,4.702,3625.8,3625.7,3.0]
[1754036497411,0.1,3625.6,3625.5,2.75824024]
[1754036497616,0.1,3625.6,3625.5,5.75824024]
[1754036497821,0.1,3625.0,3624.9,3.0]
[1754036497974,4.701,3625.0,3624.9,9.35059479]
[1754036498179,4.601,3625.0,3624.9,0.5694]
[1754036498495,4.601,3625.0,3624.9,11.02217079]
[1754036498679,0.1,3625.1,3625.0,9.86859468]
[1754036498878,0.1,3625.1,3625.0,5.75862068]
[1754036498879,4.701,3625.1,3625.0,5.75862068]
[1754036499190,0.1,3624.7,3624.6,0.20710205]
[1754036499398,6.5737,3624.7,3624.2,7.688592]
[1754036499722,0.1,3624.1,3624.0,0.002]
[1754036499934,4.701,3624.1,3624.0,0.002]
[1754036501346,4.701,3624.1,3624.0,2.76138189]
[1754036501483,0.1,3624.1,3624.0,0.002]
[1754036501688,4.7,3624.1,3624.0,2.76138189]
[1754036502046,4.6,3624.1,3624.0,0.002]
[1754036502199,4.7,3624.1,3624.0,0.002]
[1754036502987,4.7,3624.1,3624.0,0.20847067]
[1754036503221,1.9727,3624.1,3624.0,0.002]
[1754036503422,6.5727,3624.1,3624.0,0.002]
[1754036503583,7.0098,3624.1,3624.0,0.002]
[1754036503792,1.9727,3624.1,3624.0,0.002]
[1754036504123,7.0098,3624.1,3624.0,0.002]
[1754036504621,6.5727,3624.1,3624.0,0.002]
[1754036504834,1.9727,3624.1,3624.0,0.002]
[1754036504988,4.699,3624.1,3624.0,0.002]
[1754036506288,0.1,3624.1,3624.0,0.002]
[1754036506492,4.699,3624.1,3624.0,0.2094531]
[1754036506722,4.699,3624.1,3624.0,6.42963499]
[1754036506946,1.8727,3624.7,3624.0,3.6702531]
[1754036507163,0.1,3624.1,3624.0,3.6702531]
[1754036507319,4.599,3624.1,3624.0,25.6400401]
[1754036507645,0.55,3625.2,3624.0,34.34332374]
[1754036507951,0.1,3624.2,3624.0,6.42958541]
[1754036508257,0.55,3625.1,3624.2,3.582754]
[1754036508454,4.598,3625.0,3624.2,3.058754]
[1754036508667,0.1,3624.1,3624.0,0.2094531]
[1754036509276,4.698,3624.1,3624.0,0.2094531]
[1754036509412,2.001,3624.1,3624.0,0.2094531]
[1754036509615,6.599,3624.1,3624.0,0.2094531]
[1754036509838,4.698,3624.1,3624.0,0.2094531]
[1754036510311,6.599,3624.1,3624.0,0.2094531]
[1754036510613,7.6049,3624.1,3624.0,0.002]
[1754036510813,1.901,3624.1,3624.0,0.002]
[1754036511016,6.7356,3624.1,3624.0,0.002]
[1754036512117,0.1376,3624.1,3624.0,0.002]
[1754036512318,0.1376,3624.3,3624.0,0.4628]
[1754036512553,4.597,3624.2,3624.1,3.22005473]
[1754036512757,0.1376,3624.4,3624.1,3.22005473]
[1754036512967,4.697,3624.2,3624.1,5.75925473]
[1754036513653,4.697,3624.2,3624.1,6.22005473]
[1754036513864,0.1376,3624.4,3624.3,2.75915349]
[1754036514058,4.8346,3624.4,3624.1,0.4608]
[1754036514400,6.6356,3624.4,3624.0,0.002]
[1754036514675,0.1376,3624.2,3624.1,2.75930575]
[1754036515053,4.7336,3624.2,3624.1,2.75930575]
[1754036515606,8.9869,3625.0,3624.2,2.7591611]
[1754036515799,0.1,3624.2,3624.1,3.22007881]
[1754036516092,8.531,3625.0,3624.1,3.22007881]
[1754036516093,0.1,3625.0,3624.9,2.75869679]
[1754036516256,0.1376,3625.3,3625.2,2.75846849]
[1754036516586,0.2376,3625.3,3625.2,3.0]
[1754036517065,4.695,3625.3,3625.2,5.75846849]
[1754036518084,8.531,3625.9,3625.3,5.7583772]
[1754036518085,0.1,3625.4,3625.3,5.7583772]
[1754036518378,4.695,3625.4,3625.2,12.104607]
[1754036518585,0.1,3625.3,3625.1,7.180674]
[1754036518758,0.1,3624.9,3624.8,3.0]
[1754036519079,4.694,3624.9,3624.6,2.75889798]
[1754036519274,4.694,3624.9,3624.7,3.35723729]
[1754036519475,4.694,3624.9,3624.8,13.89951489]
[1754036519774,4.694,3624.9,3624.8,5.75877289]
[1754036519983,4.694,3624.9,3624.8,6.21957289]
[1754036520176,4.694,3624.9,3624.8,3.0]
[1754036520675,0.1,3624.6,3624.4,2.75902578]
[1754036520841,0.1,3624.6,3624.5,3.721005]
[1754036521047,4.593,3624.9,3624.8,5.75877289]
[1754036521257,4.693,3624.9,3624.8,12.565536]
[1754036521460,0.1376,3625.5,3624.9,5.302575]
[1754036521789,4.593,3625.4,3625.3,5.7583924]
[1754036521991,4.593,3625.4,3625.3,5.8959924]
[1754036522356,0.1376,3625.8,3625.3,3.1376]
[1754036522554,0.1386,3626.0,3625.7,2.75808809]
[1754036522774,0.1386,3626.0,3625.5,2.89578884]
[1754036523054,0.1386,3626.0,3625.8,2.75801202]
[1754036523278,11.223,3625.9,3625.8,23.38817402]
[1754036523499,11.223,3625.9,3625.8,19.94957202]
[1754036523697,11.323,3625.9,3625.6,2.75814335]
[1754036523860,11.223,3625.9,3625.8,20.55239902]
[1754036524058,11.223,3625.9,3625.8,20.26439902]
[1754036524256,6.631,3625.9,3625.8,21.51439902]
[1754036524483,11.222,3625.9,3625.8,22.11279902]
[1754036524694,6.631,3625.9,3625.8,36.35641202]
[1754036524893,11.222,3625.9,3625.8,18.10786402]
[1754036525069,11.222,3625.9,3625.8,13.35583102]
[1754036525495,6.631,3625.9,3625.8,13.35583102]
[1754036525697,11.222,3625.9,3625.8,3.1376]
[1754036525897,11.222,3625.9,3625.8,9.924741]
[1754036526087,11.222,3625.9,3625.8,16.535154]
[1754036526286,11.222,3625.9,3625.8,10.916705]
[1754036526484,11.222,3625.9,3625.8,13.67471702]
[1754036526485,6.631,3625.9,3625.8,13.67471702]
[1754036526803,11.221,3625.9,3625.8,3.0]
[1754036527102,0.001,3625.9,3625.8,18.12907902]
[1754036527288,4.591,3625.9,3625.8,18.58987902]
[1754036527493,4.591,3625.9,3625.8,9.09900602]
[1754036527992,4.591,3625.9,3625.8,16.95352991]
[1754036528369,4.591,3625.9,3625.8,3.34572389]
[1754036528798,4.591,3625.9,3625.8,3.20812389]
[1754036529301,4.591,3625.9,3625.8,2.96613591]
[1754036529596,4.59,3625.9,3625.8,0.20812389]
[1754036529776,0.1,3625.8,3625.7,3.0]
[1754036529978,0.1,3625.8,3625.6,3.0]
[1754036530196,0.1,3625.8,3625.5,3.1376]
[1754036530413,0.1,3625.6,3625.5,15.09499858]
[1754036530763,0.1,3625.6,3625.5,12.336777]
[1754036531102,0.1376,3625.8,3625.3,3.1376]
[1754036531103,0.1,3625.4,3625.3,3.1376]
[1754036531277,4.688,3625.4,3625.3,0.1376]
[1754036531601,0.1376,3625.6,3625.5,2.75824024]
[1754036531797,4.7246,3625.6,3625.5,25.88971824]
[1754036531974,0.1376,3625.6,3625.5,25.88971824]
[1754036532300,4.7246,3625.6,3625.5,2.75824024]
[1754036532497,4.587,3625.6,3625.5,22.67600724]
[1754036532705,4.587,3625.6,3625.5,20.96623924]
[1754036532914,0.1,3625.7,3625.6,5.75816416]
[1754036533211,1.901,3625.6,3621.9,2.906]
[1754036533517,1.901,3625.6,3623.1,30.0]
[1754036533518,0.1,3624.4,3623.1,30.0]
[1754036533679,0.1,3624.4,3624.0,2.75932666]
[1754036533880,7.178,3625.5,3623.4,20.203594]
[1754036533881,0.1,3624.2,3624.1,6.840517]
[1754036534082,0.1,3624.2,3623.5,5.607604]
[1754036534288,0.1,3623.9,3623.5,2.155622]
[1754036534477,1.901,3624.9,3624.0,23.985009]
[1754036534806,0.1,3624.8,3624.5,3.0]
[1754036535008,0.1,3624.8,3624.4,3.0]
[1754036535313,0.1,3624.8,3624.7,6.389774]
[1754036535533,0.1,3624.3,3624.0,2.75931556]
[1754036535710,0.1,3624.1,3623.4,19.840313]